bitfinex-derivatives/quotes_ETHF0:USTF0_20250626
["timestamp","ask_amount","ask_price","bid_price","bid_amount"]
[1750938001610,0.81653,2448.4,2448.3,0.81651]
[1750938001816,3.2078,2448.4,2448.3,0.81651]
[1750938002017,3.2078,2448.4,2448.3,3.25654141]
[1750938002316,3.8672,2448.4,2448.3,3.25654141]
[1750938002616,6.63454,2448.7,2448.3,5.07974243]
[1750938002818,0.81651,2448.4,2448.3,3.25656141]
[1750938003016,0.81651,2448.4,2448.3,0.81653]
[1750938004208,0.81651,2448.5,2448.4,0.8165]
[1750938004413,0.81654,2448.3,2448.2,2.44003141]
[1750938005520,0.81654,2448.3,2448.2,0.81658]
[1750938005714,0.81658,2448.2,2448.1,3.25663141]
[1750938005920,1.47788,2448.2,2448.1,3.25663141]
[1750938006310,1.47788,2448.2,2448.1,2.44003141]
[1750938006521,5.49469102,2448.2,2448.1,2.44003141]
[1750938007016,0.81661,2448.1,2448.0,3.25667141]
[1750938007215,5.40151,2448.1,2448.0,3.25667141]
[1750938007520,0.81668,2448.0,2447.9,0.81665]
[1750938007720,1.77242977,2448.0,2447.9,0.81665]
[1750938008318,0.81668,2448.0,2447.9,0.81665]
[1750938008824,2.04162,2448.0,2447.5,11.80783]
[1750938009118,0.81673,2447.8,2447.7,0.8167]
[1750938009619,1.52363,2447.8,2447.7,0.8167]
[1750938010121,4.73143,2447.8,2447.7,0.8167]
[1750938010323,4.73143,2447.8,2447.5,6.558]
[1750938010324,0.81678,2447.7,2447.6,0.81676]
[1750938010514,4.73144,2447.8,2447.7,0.81674]
[1750938012123,3.9147,2447.8,2447.7,0.81674]
[1750938012323,4.73141,2447.8,2447.7,0.81674]
[1750938012518,3.9147,2447.8,2447.7,0.81674]
[1750938012725,0.81678,2447.6,2447.5,6.558]
[1750938013118,0.81684,2447.4,2447.3,0.81684]
[1750938013822,4.02463,2447.5,2447.4,0.81684]
[1750938015725,3.2078,2447.5,2447.4,0.81684]
[1750938016122,3.2078,2447.5,2447.4,1.52894]
[1750938017018,3.9147,2447.8,2447.7,0.81674]
[1750938017223,4.73143,2447.8,2447.7,0.81674]
[1750938018432,3.9147,2447.8,2447.7,0.81674]
[1750938019431,3.2078,2447.8,2447.7,0.81674]
[1750938020424,4.02451,2447.8,2447.7,0.81674]
[1750938020917,3.2078,2447.8,2447.7,0.81674]
[1750938021525,3.2078,2447.8,2447.7,2.17384]
[1750938022430,3.2078,2447.8,2447.7,2.83674]
[1750938025533,4.02451,2447.8,2447.7,1.47964]
[1750938026230,3.2078,2447.8,2447.7,1.47964]
[1750938028833,4.02451,2447.8,2447.7,1.47964]
[1750938029036,3.2078,2447.8,2447.7,1.47964]
[1750938034338,4.16233225,2447.8,2447.7,1.47964]
[1750938037242,0.95453225,2447.8,2447.7,1.47964]
[1750938038141,1.77124225,2447.8,2447.7,1.47964]
[1750938038641,0.95453225,2447.8,2447.7,1.47964]
[1750938043959,1.77124225,2447.8,2447.7,1.47964]
[1750938044261,1.77124225,2447.8,2447.7,0.81674]
[1750938045163,0.95453225,2447.8,2447.7,0.81674]
[1750938045555,1.77124225,2447.8,2447.7,0.81674]
[1750938046360,0.95453225,2447.8,2447.7,0.81674]
[1750938046758,1.77124225,2447.8,2447.7,0.81674]
[1750938047961,3.81914225,2447.8,2447.7,0.81674]
[1750938048261,0.81674,2447.7,2447.6,6.546]
[1750938048457,3.82987225,2447.7,2447.6,7.36278]
[1750938049049,3.01313225,2447.7,2447.6,7.36278]
[1750938049357,1.65393225,2447.7,2447.6,7.36278]
[1750938052065,0.95453225,2447.7,2447.6,7.36278]
[1750938052261,0.95528906,2447.7,2447.6,7.36278]
[1750938055657,1.77202906,2447.7,2447.6,7.36278]
[1750938058066,0.95528906,2447.7,2447.6,7.36278]
[1750938061170,1.77202906,2447.7,2447.6,7.36278]
[1750938061559,0.95528906,2447.7,2447.6,7.36278]
[1750938065172,1.77202906,2447.7,2447.6,7.36278]
[1750938065373,0.95528906,2447.7,2447.6,7.36278]
[1750938068270,0.95528906,2447.7,2447.6,10.00249102]
[1750938068971,0.95528906,2447.7,2447.6,10.71159102]
[1750938073973,3.2078,2447.9,2447.8,0.81671]
[1750938074176,4.16833357,2447.9,2447.8,3.45642102]
[1750938075175,0.96053357,2447.9,2447.8,3.45642102]
[1750938075363,0.7294,2448.2,2448.1,0.81661]
[1750938075569,2.50586633,2448.2,2448.1,0.81661]
[1750938076273,3.84366633,2448.2,2448.1,0.81661]
[1750938078975,3.02708633,2448.2,2447.7,2.70401]
[1750938079176,3.02708633,2448.2,2447.9,0.81664]
[1750938079177,4.02446,2448.0,2447.9,0.81664]
[1750938079478,4.16768633,2448.0,2447.9,0.81664]
[1750938079670,5.56098633,2448.0,2447.9,0.81664]
[1750938080177,5.56098633,2448.0,2447.5,3.78203141]
[1750938080178,10.56098633,2448.0,2447.5,2.44003141]
[1750938080377,6.41849735,2447.9,2447.7,0.81672]
[1750938080573,6.37771633,2447.8,2447.7,0.81672]
[1750938080878,0.81677,2447.7,2447.6,0.81675]
[1750938081066,3.16995633,2447.7,2447.6,0.81675]
[1750938083677,0.8168,2447.6,2447.5,0.81678]
[1750938083870,2.50368633,2447.6,2447.5,0.81678]
[1750938084478,1.68688633,2447.6,2447.5,0.81678]
[1750938085376,3.08568633,2447.6,2447.5,0.81678]
[1750938086468,3.90246633,2447.6,2447.5,0.81678]
[1750938086973,3.08568633,2447.6,2447.5,0.81678]
[1750938087469,1.68688633,2447.6,2447.5,0.81678]
[1750938087673,2.50366633,2447.6,2447.5,0.81678]
[1750938088974,1.68688633,2447.6,2447.5,0.81678]
[1750938090884,2.50366633,2447.6,2447.5,0.81678]
[1750938092080,2.50366633,2447.6,2447.1,11.01436141]
[1750938092081,6.68688633,2447.6,2447.1,2.44003141]
[1750938092284,3.2078,2447.4,2447.3,0.81688]
[1750938092483,4.02464,2447.4,2447.3,0.81688]
[1750938092785,6.15364,2447.4,2447.3,0.81688]
[1750938092987,7.1130074,2447.4,2447.3,0.81688]
[1750938094184,6.2961674,2447.4,2447.3,0.81688]
[1750938094485,3.2078,2447.4,2447.3,0.81688]
[1750938094686,4.02464,2447.4,2447.3,0.81688]
[1750938096889,4.98154221,2447.4,2447.3,0.81688]
[1750938097687,4.16470221,2447.4,2447.3,0.81688]
[1750938098188,4.98154221,2447.4,2447.3,0.81688]
[1750938101486,4.98154221,2447.4,2447.0,15.11813102]
[1750938101487,0.81694,2447.1,2447.0,4.73497]
[1750938101679,0.7173,2447.3,2447.0,2.63971102]
[1750938101883,1.53421,2447.3,2447.2,0.81691]
[1750938102085,2.49190221,2447.3,2447.2,0.81691]
[1750938102580,2.49187221,2447.3,2447.2,0.81691]
[1750938102786,0.7173,2447.3,2447.2,0.81691]
[1750938102989,1.53418,2447.3,2447.2,0.81691]
[1750938103884,0.7173,2447.3,2447.2,0.81691]
[1750938105289,1.53418,2447.3,2447.2,0.81691]
[1750938105679,0.7173,2447.3,2447.2,0.81691]
[1750938106488,1.67620299,2447.3,2447.2,0.81691]
[1750938107792,2.49308299,2447.3,2447.2,0.81691]
[1750938108090,1.67620299,2447.3,2447.2,0.81691]
[1750938111194,2.49308299,2447.3,2447.2,0.81691]
[1750938111396,1.67620299,2447.3,2447.2,0.81691]
[1750938113287,2.49308299,2447.3,2447.2,0.81691]
[1750938113590,1.67620299,2447.3,2447.2,0.81691]
[1750938121598,2.0424,2447.1,2446.6,2.44003141]
[1750938121802,3.45677102,2446.8,2446.7,0.81705]
[1750938122101,7.62347401,2446.8,2446.7,0.81705]
[1750938122492,4.98376299,2446.8,2446.7,0.81705]
[1750938122692,6.37696299,2446.8,2446.7,0.81705]
[1750938123090,4.16670299,2446.8,2446.7,0.81705]
[1750938125112,0.95890299,2446.8,2446.7,2.14085]
[1750938125402,3.2078,2447.1,2447.0,0.81698]
[1750938125592,4.16529533,2447.1,2447.0,0.81698]
[1750938126197,4.98223533,2447.1,2447.0,0.81698]
[1750938126399,4.16529533,2447.1,2446.8,0.81701]
[1750938126599,0.81707,2446.8,2446.6,7.2001]
[1750938126794,4.02488,2446.7,2446.6,6.509]
[1750938127000,4.98277524,2446.7,2446.6,6.509]
[1750938127201,0.81711,2446.6,2446.5,0.81712]
[1750938127401,1.52391,2446.6,2446.5,0.81712]
[1750938127598,2.91651,2446.6,2446.5,0.81712]
[1750938131208,0.7068,2446.6,2446.5,0.81712]
[1750938133008,1.52391,2446.6,2446.5,0.81712]
[1750938134512,0.7068,2446.6,2446.5,0.81712]
[1750938135003,1.52391,2446.6,2446.5,0.81712]
[1750938135411,0.7068,2446.6,2446.5,0.81712]
[1750938135611,1.52391,2446.6,2446.5,0.81712]
[1750938136510,0.81717,2446.5,2446.4,0.81714]
[1750938137311,2.87713,2446.6,2446.5,0.81714]
[1750938137516,2.06,2446.6,2446.5,0.81714]
[1750938139710,0.7068,2446.6,2446.5,0.81714]
[1750938140614,0.7068,2446.6,2446.5,1.49744]
[1750938147111,1.52391,2446.6,2446.5,1.49744]
[1750938147517,1.52391,2446.6,2446.5,0.81714]
[1750938147919,2.48203879,2446.6,2446.5,0.81714]
[1750938148519,0.81717,2446.5,2446.4,0.81715]
[1750938150317,1.77575283,2446.5,2446.4,0.81715]
[1750938150513,0.95858283,2446.5,2446.4,0.81715]
[1750938150716,1.52393,2446.6,2446.5,0.81714]
[1750938150918,2.48251677,2446.6,2446.5,0.81714]
[1750938151924,2.48249677,2446.6,2446.5,0.81714]
[1750938153126,1.66538677,2446.6,2446.5,0.81714]
[1750938153522,2.48249677,2446.6,2446.5,0.81714]
[1750938156627,3.89989677,2446.6,2446.5,0.81714]
[1750938157525,2.48249677,2446.6,2446.5,0.81714]
[1750938158626,0.81718,2446.5,2446.4,0.81715]
[1750938158821,1.77576677,2446.5,2446.4,0.81715]
[1750938159720,0.81718,2446.4,2446.3,0.81719]
[1750938159920,1.77576677,2446.4,2446.3,0.81719]
[1750938161734,0.81724,2446.2,2446.1,0.81725]
[1750938161928,0.81728,2446.1,2446.0,0.8173]
[1750938162229,4.98424529,2446.1,2446.0,0.8173]
[1750938163332,4.02508,2446.1,2446.0,0.8173]
[1750938163531,4.98337184,2446.1,2446.0,0.8173]
[1750938165323,4.16609184,2446.1,2446.0,0.8173]
[1750938165528,4.98337184,2446.1,2446.0,0.8173]
[1750938165928,0.81741,2445.8,2445.5,2.44003141]
[1750938166127,0.81741,2445.8,2445.7,0.81741]
[1750938166830,0.81741,2445.7,2445.6,1.49832]
[1750938167228,5.25128,2445.8,2445.3,8.94203141]
[1750938167436,0.81743,2445.7,2445.6,0.81742]
[1750938168039,4.0252,2445.8,2445.7,0.81741]
[1750938169139,0.81743,2445.7,2445.6,0.81742]
[1750938169332,4.0252,2445.8,2445.6,0.81742]
[1750938169639,4.0252,2445.8,2445.7,0.81741]
[1750938169941,4.02518,2445.8,2445.7,0.81741]
[1750938170138,3.2078,2445.8,2445.7,0.81741]
[1750938170345,4.02518,2445.8,2445.7,0.81741]
[1750938170945,3.2078,2445.8,2445.7,0.81741]
[1750938171138,4.98084156,2445.8,2445.7,0.81741]
[1750938171340,0.81743,2445.7,2445.6,0.81742]
[1750938171541,1.50523,2445.7,2445.6,0.81742]
[1750938174649,0.6878,2445.7,2445.6,0.81742]
[1750938174848,4.0252,2445.8,2445.7,0.81741]
[1750938175049,4.98029541,2445.8,2445.7,0.81741]
[1750938175249,4.0252,2445.8,2445.7,0.81741]
[1750938175749,4.98037885,2445.8,2445.7,0.81741]
[1750938176843,0.81744,2445.7,2445.6,0.81742]
[1750938179754,4.0252,2445.8,2445.7,0.81741]
[1750938180053,4.9805915,2445.8,2445.7,0.81741]
[1750938182256,4.1631915,2445.8,2445.4,0.6938]
[1750938182554,0.81744,2445.7,2445.6,0.7218]
[1750938182756,2.63971102,2445.7,2445.4,8.00429]
[1750938183055,4.02528,2445.5,2445.4,7.1868]
[1750938183254,5.84751102,2445.5,2445.1,0.7218]
[1750938183455,4.02538,2445.2,2445.1,1.53938]
[1750938183855,4.69248,2445.2,2445.1,1.53938]
[1750938184257,4.69248,2445.2,2445.1,0.7218]
[1750938185659,3.2078,2445.2,2445.1,1.53941]
[1750938185858,4.02529,2445.5,2445.4,0.81751]
[1750938186052,4.16620691,2445.5,2445.4,0.81751]
[1750938186453,4.98368691,2445.5,2445.4,0.81751]
[1750938186953,4.16620691,2445.5,2445.4,0.81751]
[1750938188360,4.98368691,2445.5,2445.4,0.81751]
[1750938188562,4.16620691,2445.5,2445.4,0.81751]
[1750938188861,4.98368691,2445.5,2445.4,0.81751]
[1750938189258,4.02528,2445.5,2445.4,0.81751]
[1750938190160,4.98524035,2445.5,2445.4,0.81751]
[1750938191065,4.16776035,2445.5,2445.4,0.81751]
[1750938191267,4.98524035,2445.5,2445.4,0.81751]
[1750938192768,0.81751,2445.4,2445.3,7.31152]
[1750938192970,1.53231,2445.4,2445.3,7.31152]
[1750938193269,2.49304745,2445.4,2445.3,7.31152]
[1750938193569,1.67553745,2445.4,2445.3,7.31152]
[1750938194464,2.49304745,2445.4,2445.3,7.31152]
[1750938194663,1.67553745,2445.4,2445.3,7.31152]
[1750938195370,2.49304745,2445.4,2445.3,7.31152]
[1750938195971,2.49304745,2445.4,2445.3,0.81752]
[1750938196173,3.92644745,2445.4,2445.3,0.81752]
[1750938196770,0.81754,2445.3,2445.2,7.31156]
[1750938196970,1.77827745,2445.3,2445.2,7.31156]
[1750938197172,0.81764,2445.1,2445.0,0.8176]
[1750938197471,3.2078,2445.1,2445.0,7.3116]
[1750938197670,4.02541,2445.1,2445.0,7.3116]
[1750938198369,3.2078,2445.1,2445.0,7.3116]
[1750938198773,3.2078,2445.1,2445.0,8.0238]
[1750938199878,3.2078,2445.1,2445.0,11.99381102]
[1750938200169,3.2078,2445.7,2445.6,0.81744]
[1750938200371,4.98685683,2445.7,2445.6,0.81744]
[1750938200766,4.16944683,2445.7,2445.6,0.81744]
[1750938201477,4.98685683,2445.7,2445.6,0.81744]
[1750938201778,4.16944683,2445.7,2445.6,0.81744]
[1750938202178,4.98685683,2445.7,2445.6,0.81744]
[1750938202879,4.16944683,2445.7,2445.6,0.81744]
[1750938203080,4.98685683,2445.7,2445.6,0.81744]
[1750938203278,4.16944683,2445.7,2445.6,0.81744]
[1750938205082,4.98685683,2445.7,2445.6,0.81744]
[1750938205885,4.16944683,2445.7,2445.6,0.81744]
[1750938206482,0.7165,2446.1,2446.0,0.81731]
[1750938206483,3.2078,2446.1,2446.0,0.81731]
[1750938207075,3.2078,2446.1,2446.0,1.49321]
[1750938207278,6.31879179,2446.4,2446.3,0.81721]
[1750938207771,0.81735,2445.9,2445.4,54.23750243]
[1750938207978,4.02511,2446.0,2445.9,0.81734]
[1750938208276,3.2078,2446.0,2445.9,7.31134]
[1750938208984,3.2078,2446.0,2445.9,9.44264]
[1750938210079,3.2078,2446.4,2446.3,0.81721]
[1750938210286,3.2078,2446.4,2446.3,7.31121]
[1750938210787,3.2078,2446.4,2446.3,8.00431]
[1750938211781,3.2078,2446.4,2446.3,9.32261]
[1750938212088,3.8868,2446.7,2446.6,0.81711]
[1750938212890,4.70388,2446.7,2446.6,0.81711]
[1750938213087,3.8868,2446.7,2446.6,0.81711]
[1750938214089,4.70388,2446.7,2446.6,0.81711]
[1750938215191,3.8868,2446.7,2446.6,0.81711]
[1750938216091,4.70388,2446.7,2446.6,0.81711]
[1750938216293,3.8868,2446.7,2446.6,0.81711]
[1750938216790,4.70388,2446.7,2446.6,0.81711]
[1750938217390,0.81717,2446.5,2446.4,0.81714]
[1750938217795,0.81724,2446.3,2446.2,0.8172]
[1750938218002,3.45695102,2446.3,2446.2,0.8172]
[1750938218295,0.81728,2446.2,2446.1,0.81725]
[1750938218489,2.88278,2446.2,2446.1,0.81725]
[1750938219405,0.81734,2446.0,2445.9,0.8173]
[1750938219598,4.02514,2446.0,2445.9,7.3003]
[1750938219799,4.02514,2446.0,2445.9,0.8173]
[1750938219996,4.02514,2446.0,2445.9,7.3003]
[1750938220906,4.02514,2446.0,2445.9,6.483]
[1750938221204,4.02514,2446.0,2445.9,0.81734]
[1750938222107,0.81738,2445.9,2445.8,0.81735]
[1750938222706,0.81737,2445.9,2445.8,0.81734]
[1750938222901,0.81738,2445.8,2445.7,6.483]
[1750938223094,1.52938,2445.8,2445.7,6.483]
[1750938223898,1.52938,2445.8,2445.7,7.30041]
[1750938224302,1.52938,2445.8,2445.7,6.483]
[1750938224896,1.52938,2445.8,2445.7,7.30041]
[1750938225096,1.52938,2445.8,2445.7,6.483]
[1750938225805,1.52938,2445.8,2445.7,7.30041]
[1750938226704,0.712,2445.8,2445.7,7.30041]
[1750938226900,3.2078,2446.0,2445.9,0.81734]
[1750938227205,4.1598357,2446.0,2445.9,3.45705102]
[1750938228706,4.1598357,2446.0,2445.9,4.86065102]
[1750938229806,3.2078,2446.0,2445.9,4.86065102]
[1750938232504,0.6795,2446.4,2446.3,0.81721]
[1750938232806,1.63286086,2446.4,2446.3,0.81721]
[1750938236099,2.45004086,2446.4,2446.3,0.81721]
[1750938236703,0.81724,2446.3,2446.1,6.483]
[1750938236898,7.61811188,2446.2,2446.1,7.30028]
[1750938237309,7.61811188,2446.2,2446.1,0.81728]
[1750938239414,0.81733,2446.1,2446.0,0.81729]
[1750938239714,1.77069086,2446.1,2446.0,0.81729]
[1750938239912,0.81734,2446.0,2445.9,0.81732]
[1750938240114,1.54364,2446.0,2445.9,0.81732]
[1750938241018,0.81741,2445.8,2445.7,0.81735]
[1750938241206,0.81741,2445.8,2445.7,7.30035]
[1750938242719,4.02517,2445.9,2445.8,0.81738]
[1750938243018,4.9795508,2445.9,2445.8,0.81738]
[1750938243517,6.3801508,2445.9,2445.8,0.81738]
[1750938244519,0.81738,2445.8,2445.7,7.30039]
[1750938244816,3.1723608,2445.8,2445.7,7.30041]
[1750938245619,1.7717608,2445.8,2445.7,7.30041]
[1750938245821,0.9543808,2445.8,2445.7,7.30041]
[1750938246023,3.2078,2445.9,2445.8,0.81738]
[1750938246223,4.16311467,2445.9,2445.8,0.81738]
[1750938246426,4.16311467,2445.9,2445.8,1.47858]
[1750938248821,4.98045467,2445.9,2445.8,1.47858]
[1750938249021,4.16311467,2445.9,2445.8,1.47858]
[1750938249222,4.98045467,2445.9,2445.8,1.47858]
[1750938249621,4.98045467,2445.9,2445.8,0.81738]
[1750938251017,6.30375467,2445.9,2445.8,0.81738]
[1750938252024,6.98395467,2445.9,2445.8,0.81738]
[1750938253624,0.81738,2445.8,2445.7,7.29439]
[1750938253821,1.77269467,2445.8,2445.7,7.29439]
[1750938254027,0.81741,2445.7,2445.6,0.81742]
[1750938254227,1.77272467,2445.7,2445.6,0.81742]
[1750938254725,3.20762467,2445.7,2445.6,0.81742]
[1750938254921,0.81749,2445.6,2445.5,0.81745]
[1750938255127,2.47190467,2445.6,2445.5,0.81745]
[1750938257526,1.65441467,2445.6,2445.5,0.81745]
[1750938257829,4.02517,2445.9,2445.8,0.81738]
[1750938258028,4.98071356,2445.9,2445.8,0.81738]
[1750938258228,4.16334356,2445.9,2445.8,0.81738]
[1750938259138,2.88494477,2445.9,2445.8,7.16098]
[1750938259730,3.2078,2446.2,2446.1,0.81728]
[1750938259931,4.16355774,2446.2,2446.1,11.99599102]
[1750938263232,4.16355774,2446.2,2446.1,1.53568]
[1750938263432,4.16355774,2446.2,2446.1,8.01268]
[1750938263624,4.16355774,2446.2,2446.1,7.29428]
[1750938269931,4.98079774,2446.2,2446.1,0.81728]
[1750938270236,6.35489774,2446.2,2446.1,0.81728]
[1750938270738,0.81728,2446.1,2446.0,6.476]
[1750938270930,1.77303774,2446.1,2446.0,7.29331]
[1750938271329,0.81728,2446.1,2446.0,7.29331]
[1750938271732,6.42898054,2446.8,2446.7,0.81708]
[1750938272031,4.02647568,2447.3,2446.7,2.63971102]
[1750938272233,4.02647568,2447.2,2446.6,3.2078]
[1750938272434,3.2078,2447.1,2447.0,0.81698]
[1750938272633,4.73324,2447.1,2447.0,0.81698]
[1750938272829,0.81708,2446.7,2446.6,0.8171]
[1750938273139,0.81712,2446.6,2446.4,0.81715]
[1750938273437,4.02497,2446.5,2446.3,0.8172]
[1750938274531,0.81721,2446.4,2446.2,0.81722]
[1750938275629,0.81722,2446.3,2446.1,0.81725]
[1750938275831,0.81724,2446.2,2446.0,3.25732141]
[1750938276134,0.81724,2446.2,2446.1,0.81728]
[1750938276336,0.81728,2446.1,2446.0,0.81728]
[1750938276636,0.81728,2446.1,2445.9,2.44003141]
[1750938277137,0.81728,2446.1,2446.0,0.81731]
[1750938277736,5.25092,2446.2,2445.7,2.44003141]
[1750938278033,2.0945,2446.1,2445.8,0.81737]
[1750938278638,0.81734,2445.9,2445.8,0.81737]
[1750938279337,0.81738,2445.8,2445.7,3.25742141]
[1750938279543,0.81737,2445.9,2445.8,0.81737]
[1750938280035,0.81738,2445.8,2445.7,2.44003141]
[1750938280440,0.6806,2446.0,2445.7,2.44003141]
[1750938280639,1.49793,2446.0,2445.9,0.81734]
[1750938280938,0.81736,2445.9,2445.8,0.81736]
[1750938281335,1.49794,2446.0,2445.9,0.81734]
[1750938281536,0.81737,2445.9,2445.8,0.81736]
[1750938281737,0.81742,2445.8,2445.7,0.81739]
[1750938282539,0.81743,2445.7,2445.6,0.81741]
[1750938289043,0.81743,2445.7,2445.2,10.76523]
[1750938289244,0.81743,2445.7,2445.4,0.81748]
[1750938289245,0.81752,2445.5,2445.4,0.81748]
[1750938289640,0.81758,2445.3,2445.2,0.81754]
[1750938289944,4.02538,2445.3,2445.2,0.81754]
[1750938290243,0.81763,2445.2,2445.1,0.81759]
[1750938290445,2.25433,2445.2,2445.1,0.81759]
[1750938290644,0.81766,2445.1,2445.0,0.81762]
[1750938290845,1.50446,2445.1,2445.0,0.81762]
[1750938291639,1.50442,2445.1,2445.0,0.81764]
[1750938291840,11.90067,2445.3,2444.6,2.44003141]
[1750938291841,3.2078,2445.3,2444.6,2.44003141]
[1750938292140,0.81765,2445.0,2444.9,0.81766]
[1750938292339,4.02544,2445.0,2444.9,0.81766]
[1750938292643,0.81772,2444.8,2444.7,0.81773]
[1750938292853,3.2078,2445.0,2444.6,0.81778]
[1750938292854,0.81776,2444.7,2444.6,0.81778]
[1750938293043,3.2078,2444.7,2444.4,0.81782]
[1750938293345,0.81781,2444.5,2444.4,0.81782]
[1750938293648,0.7031,2444.6,2444.5,0.81781]
[1750938293649,1.5209,2444.6,2444.5,0.81781]
[1750938293939,0.7031,2444.6,2444.5,0.81781]
[1750938294746,2.2313,2444.9,2444.3,7.04987359]
[1750938294946,1.4973,2444.9,2444.8,0.81771]
[1750938295342,3.9337,2445.1,2444.5,2.0445]
[1750938295545,0.81764,2445.0,2444.9,0.81766]
[1750938295748,0.81764,2445.0,2444.8,0.81769]
[1750938296346,3.9337,2445.1,2444.6,1.4258]
[1750938296545,0.81766,2445.0,2444.9,0.81766]
[1750938296946,5.3448,2445.1,2444.6,1.4258]
[1750938297248,0.81764,2445.0,2444.9,0.81765]
[1750938297439,0.81768,2444.9,2444.8,0.81769]
[1750938297640,5.3448,2445.1,2444.6,1.4258]
[1750938297948,0.81772,2444.8,2444.7,0.81773]
[1750938298139,0.81775,2444.7,2444.6,0.81776]
[1750938299647,0.81776,2444.7,2444.6,0.81774]
[1750938300342,0.81778,2444.6,2444.5,7.46879]
[1750938300945,4.02558,2444.6,2444.5,7.46879]
[1750938302351,6.63852,2444.9,2444.6,0.81774]
[1750938302551,0.81776,2444.7,2444.6,0.81774]
[1750938303146,0.81784,2444.5,2444.4,0.8178]
[1750938303550,0.81784,2444.5,2444.3,1.4524]
[1750938303551,4.02558,2444.6,2444.5,0.81781]
[1750938303746,3.2078,2445.2,2444.5,5.00524359]
[1750938303950,0.81765,2445.0,2444.9,0.81765]
[1750938304155,0.81769,2445.0,2444.9,0.81767]
[1750938304649,0.81771,2444.9,2444.8,0.81769]
[1750938305166,0.81767,2445.0,2444.9,0.81765]
[1750938306058,2.04403,2445.1,2444.6,14.53724359]
[1750938306254,0.81779,2444.7,2444.6,0.81775]
[1750938306656,1.51274,2444.8,2444.7,0.81774]
[1750938308760,5.695,2444.8,2444.1,1.6224853]
[1750938309055,3.2078,2444.6,2444.1,2.04486]
[1750938309253,3.2078,2444.6,2444.2,0.81787]
[1750938309254,0.81791,2444.3,2444.2,0.81787]
[1750938309558,0.81794,2444.2,2444.1,0.81792]
[1750938310059,3.2078,2444.3,2443.8,9.83552889]
[1750938310250,3.2078,2444.3,2443.9,8.824]
[1750938310452,2.25246,2444.4,2444.3,0.81788]
[1750938310652,1.4346,2444.4,2444.3,0.81788]
[1750938311060,4.0256,2444.6,2444.5,0.81781]
[1750938311260,0.81784,2444.5,2444.4,0.81782]
[1750938311857,4.0256,2444.6,2444.5,0.81781]
[1750938312260,0.81784,2444.5,2444.4,0.81782]
[1750938312671,4.0256,2444.6,2444.5,0.81781]
[1750938312872,3.2078,2444.6,2444.5,0.81781]
[1750938313159,3.2078,2445.2,2444.6,2.04445]
[1750938313359,0.81763,2445.1,2445.0,0.81761]
[1750938314167,4.02539,2445.2,2445.1,0.81761]
[1750938314770,0.81763,2445.1,2445.0,0.81762]
[1750938315261,3.2078,2445.2,2445.1,0.81761]
[1750938315262,4.0254,2445.2,2445.1,0.81761]
[1750938315462,3.2078,2445.2,2445.1,0.81761]
[1750938316869,4.02538,2445.2,2445.1,0.81761]
[1750938317066,3.2078,2445.2,2445.0,0.81763]
[1750938317259,1.51984,2445.1,2445.0,0.81763]
[1750938317463,1.51983,2445.1,2445.0,0.81764]
[1750938317663,0.7022,2445.1,2445.0,0.81764]
[1750938319165,3.2078,2445.2,2445.1,0.81761]
[1750938320175,0.81747,2445.6,2445.5,0.81746]
[1750938320357,3.2078,2445.7,2445.6,0.81744]
[1750938320558,7.11632491,2446.0,2445.9,0.81734]
[1750938320762,2.43099491,2446.2,2446.1,0.81728]
[1750938320967,2.43099491,2446.3,2446.2,0.81724]
[1750938321272,3.2078,2446.6,2446.1,11.78424359]
[1750938321468,2.19306,2446.5,2446.4,0.81718]
[1750938321866,1.3759,2446.5,2446.4,0.81718]
[1750938322468,1.3759,2446.5,2446.1,6.779]
[1750938322662,3.2078,2446.3,2446.2,0.81723]
[1750938322866,3.2078,2446.3,2445.9,5.00524359]
[1750938323063,0.81726,2446.2,2445.8,6.778]
[1750938323270,0.81726,2446.2,2446.1,0.81728]
[1750938324575,3.2078,2446.3,2446.2,0.81724]
[1750938324876,3.2078,2446.3,2446.1,0.81725]
[1750938325068,0.81724,2446.2,2446.1,0.81725]
[1750938325269,4.02503,2446.3,2446.2,0.81724]
[1750938325467,0.81725,2446.2,2446.1,0.81725]
[1750938325669,4.02503,2446.3,2446.2,0.81724]
[1750938326363,4.02503,2446.3,2445.9,8.82134]
[1750938326569,0.81726,2446.2,2446.1,0.81726]
[1750938326878,4.02503,2446.3,2446.2,0.81724]
[1750938327271,0.81725,2446.2,2446.1,0.81725]
[1750938327674,4.02503,2446.3,2446.2,0.81724]
[1750938328078,0.81726,2446.2,2446.1,0.81726]
[1750938328279,4.02504,2446.3,2446.2,0.81724]
[1750938328778,0.81726,2446.2,2446.1,0.81726]
[1750938329071,0.81729,2446.1,2446.0,0.81729]
[1750938329280,3.2078,2446.3,2445.9,8.1447]
[1750938329281,4.02503,2446.3,2446.2,0.81724]
[1750938329877,0.81726,2446.2,2446.1,0.81726]
[1750938330273,3.2078,2446.3,2445.8,6.777]
[1750938330479,0.81734,2445.9,2445.8,0.81735]
[1750938330980,2.18833,2446.0,2445.9,0.81734]
[1750938331678,0.81736,2445.9,2445.8,0.81734]
[1750938331875,0.81738,2445.8,2445.7,7.59439]
[1750938332181,0.81738,2445.8,2445.7,0.81739]
[1750938332382,5.39613,2446.0,2445.9,0.81734]
[1750938332884,4.5788,2446.0,2445.9,0.81734]
[1750938333384,3.2078,2446.0,2445.9,0.81734]
[1750938333584,3.2078,2446.0,2445.9,7.59434]
[1750938338283,1.4034,2446.4,2446.1,2.04316]
[1750938338486,1.4034,2446.4,2446.3,0.81721]
[1750938338685,0.6753,2446.4,2446.3,0.81721]
[1750938339176,1.49248,2446.4,2446.3,0.81721]
[1750938339372,0.6753,2446.4,2446.3,0.81721]